[Event "Live Chess"]
[Site "Chess.com"]
[Date "2023.05.21"]
[Round "-"]
[White "WelshTiger"]
[Black "profpirate4"]
[Result "1-0"]
[WhiteElo "2355"]
[BlackElo "1259"]
[TimeControl "300"]
[EndTime "23:28:22 PDT"]
[Termination "WelshTiger won by resignation"]

1. e4 {[%clk 0:04:56.2]} 1... c5 {[%clk 0:04:58]} 2. Nf3 {[%clk 0:04:55]} 2...
d6 {[%clk 0:04:56.7]} 3. c3 {[%clk 0:04:52.8]} 3... Nf6 {[%clk 0:04:54.8]} 4. h3
{[%clk 0:04:52.3]} 4... Nxe4 {[%clk 0:04:53]} 5. Qa4+ {[%clk 0:04:50.8]} 5...
Nc6 {[%clk 0:04:47.7]} 6. Qxe4 {[%clk 0:04:49.6]} 6... e6 {[%clk 0:04:32.5]} 7.
d4 {[%clk 0:04:47]} 7... d5 {[%clk 0:04:31.2]} 8. Qc2 {[%clk 0:04:36.4]} 8...
Bd6 {[%clk 0:04:28.6]} 9. Be3 {[%clk 0:04:30.8]} 9... O-O {[%clk 0:04:27]} 10.
dxc5 {[%clk 0:04:29.7]} 10... Bc7 {[%clk 0:04:24.5]} 11. Bd3 {[%clk 0:04:28.9]}
11... e5 {[%clk 0:04:21]} 12. Bxh7+ {[%clk 0:04:26.1]} 12... Kh8 {[%clk
0:04:19.9]} 13. Bf5 {[%clk 0:04:25.6]} 13... e4 {[%clk 0:04:17.1]} 14. Nd4
{[%clk 0:04:24.4]} 14... Nxd4 {[%clk 0:04:13]} 15. Bxd4 {[%clk 0:04:15.9]} 15...
Bxf5 {[%clk 0:04:09.9]} 16. Nd2 {[%clk 0:04:14.9]} 16... Qg5 {[%clk 0:03:44.7]}
17. Be3 {[%clk 0:04:07.3]} 17... Qf6 {[%clk 0:03:36.9]} 18. g4 {[%clk
0:04:02.2]} 18... Bh7 {[%clk 0:03:34.9]} 19. O-O-O {[%clk 0:04:00.3]} 19... Rad8
{[%clk 0:03:32.4]} 20. Nb3 {[%clk 0:03:58.8]} 20... Be5 {[%clk 0:03:25.8]} 21.
h4 {[%clk 0:03:53.9]} 21... d4 {[%clk 0:03:24.3]} 22. cxd4 {[%clk 0:03:51]}
22... Bxd4 {[%clk 0:03:21.9]} 23. Rxd4 {[%clk 0:03:46]} 23... Rxd4 {[%clk
0:03:17.7]} 24. Nxd4 {[%clk 0:03:39.6]} 24... Rd8 {[%clk 0:03:10.9]} 25. g5
{[%clk 0:03:36.2]} 25... Qa6 {[%clk 0:03:09.3]} 26. Kb1 {[%clk 0:03:31.2]} 26...
Bg8 {[%clk 0:03:06.7]} 27. h5 {[%clk 0:03:26.5]} 27... f6 {[%clk 0:03:05.6]} 28.
g6 {[%clk 0:03:22.3]} 28... Qxa2+ {[%clk 0:03:03.5]} 29. Kc1 {[%clk 0:03:19.5]}
29... Qa1+ {[%clk 0:03:02.2]} 30. Qb1 {[%clk 0:03:17]} 30... Qa5 {[%clk
0:02:53.3]} 31. h6 {[%clk 0:03:08.8]} 31... Qxc5+ {[%clk 0:02:50.7]} 32. Qc2
{[%clk 0:03:04.8]} 32... Qa5 {[%clk 0:02:33]} 33. hxg7+ {[%clk 0:02:59.1]} 33...
Kxg7 {[%clk 0:02:30.3]} 34. Bh6+ {[%clk 0:02:51.1]} 34... Kh8 {[%clk 0:02:23]}
35. g7+ {[%clk 0:02:49.7]} 35... Kh7 {[%clk 0:02:07.3]} 36. Qxe4+ {[%clk
0:02:49.6]} 36... f5 {[%clk 0:02:02.8]} 37. Qxf5+ {[%clk 0:02:48.8]} 37... Qxf5
{[%clk 0:01:59.6]} 38. Nxf5 {[%clk 0:02:48.7]} 38... Rc8+ {[%clk 0:01:57.9]} 39.
Kd2 {[%clk 0:02:43.6]} 39... Bf7 {[%clk 0:01:55]} 40. Be3+ {[%clk 0:02:39.1]}
40... Kg6 {[%clk 0:01:52.4]} 41. Ne7+ {[%clk 0:02:37.1]} 1-0

[Event "Live Chess"]
[Site "Chess.com"]
[Date "2023.05.21"]
[Round "-"]
[White "Biranidun"]
[Black "Driftboard"]
[Result "1-0"]
[WhiteElo "2560"]
[BlackElo "755"]
[TimeControl "300"]
[EndTime "23:28:43 PDT"]
[Termination "Biranidun won by checkmate"]

1. e4 {[%clk 0:04:58.9]} 1... e5 {[%clk 0:04:59.7]} 2. Nf3 {[%clk 0:04:56.6]}
2... Nc6 {[%clk 0:04:59.3]} 3. Bc4 {[%clk 0:04:55.5]} 3... Nf6 {[%clk
0:04:58.6]} 4. Ng5 {[%clk 0:04:55]} 4... d5 {[%clk 0:04:57.2]} 5. exd5 {[%clk
0:04:54.9]} 5... Na5 {[%clk 0:04:55.8]} 6. Bb5+ {[%clk 0:04:54.6]} 6... c6
{[%clk 0:04:53.9]} 7. dxc6 {[%clk 0:04:54.5]} 7... Nxc6 {[%clk 0:04:51.9]} 8.
O-O {[%clk 0:04:50]} 8... Nd5 {[%clk 0:04:48]} 9. Nf3 {[%clk 0:04:47.2]} 9...
Bd7 {[%clk 0:04:41.8]} 10. Bxc6 {[%clk 0:04:45.5]} 10... Bxc6 {[%clk 0:04:40.3]}
11. Nxe5 {[%clk 0:04:45.2]} 11... Qd6 {[%clk 0:04:24.1]} 12. Nxc6 {[%clk
0:04:37.3]} 12... Qxc6 {[%clk 0:04:23]} 13. Nc3 {[%clk 0:04:23.3]} 13... Nf4
{[%clk 0:04:17.8]} 14. Qg4 {[%clk 0:04:18.5]} 14... Qf6 {[%clk 0:04:01.4]} 15.
d4 {[%clk 0:04:14]} 15... Ng6 {[%clk 0:03:55]} 16. Re1+ {[%clk 0:04:11.9]} 16...
Be7 {[%clk 0:03:53.1]} 17. Bg5 {[%clk 0:04:07.2]} 17... Qd6 {[%clk 0:03:46.8]}
18. Bxe7 {[%clk 0:04:03.4]} 18... Nxe7 {[%clk 0:03:44.5]} 19. Qxg7 {[%clk
0:04:01]} 19... Rg8 {[%clk 0:03:36.1]} 20. Qxg8+ {[%clk 0:03:58.9]} 20... Kd7
{[%clk 0:03:31.2]} 21. Qxa8 {[%clk 0:03:57.9]} 21... Nc6 {[%clk 0:03:26.9]} 22.
Qxb7+ {[%clk 0:03:56.7]} 22... Qc7 {[%clk 0:03:24.8]} 23. Qxc7+ {[%clk
0:03:55.8]} 23... Kxc7 {[%clk 0:03:23.7]} 24. Rad1 {[%clk 0:03:53.5]} 24... Kb6
{[%clk 0:03:22.4]} 25. d5 {[%clk 0:03:52.6]} 25... Nb4 {[%clk 0:03:15.7]} 26. a3
{[%clk 0:03:51.1]} 26... Nxd5 {[%clk 0:03:13.3]} 27. Nxd5+ {[%clk 0:03:50.1]}
27... Kc6 {[%clk 0:03:12.2]} 28. Nb4+ {[%clk 0:03:49.2]} 28... Kc5 {[%clk
0:03:11.4]} 29. Re5+ {[%clk 0:03:48.1]} 29... Kb6 {[%clk 0:03:08.4]} 30. Rd6+
{[%clk 0:03:47.1]} 30... Kc7 {[%clk 0:03:06.7]} 31. Rf6 {[%clk 0:03:44.3]} 31...
Kd7 {[%clk 0:03:04.8]} 32. Ra5 {[%clk 0:03:39.9]} 32... Kc7 {[%clk 0:03:02.8]}
33. Rxa7+ {[%clk 0:03:38.5]} 33... Kd8 {[%clk 0:02:58.8]} 34. Rfxf7 {[%clk
0:03:37.2]} 34... Ke8 {[%clk 0:02:55.4]} 35. Rxh7 {[%clk 0:03:36.5]} 35... Kf8
{[%clk 0:02:49.5]} 36. Rh8# {[%clk 0:03:36.4]} 1-0

[Event "Live Chess"]
[Site "Chess.com"]
[Date "2023.05.21"]
[Round "-"]
[White "YrrriKharkiv"]
[Black "Singapourfeuj"]
[Result "0-1"]
[WhiteElo "2027"]
[BlackElo "2212"]
[TimeControl "300"]
[EndTime "23:28:57 PDT"]
[Termination "Singapourfeuj won by resignation"]

1. d4 {[%clk 0:04:56.1]} 1... Nf6 {[%clk 0:04:59.1]} 2. Nf3 {[%clk 0:04:54.5]}
2... g6 {[%clk 0:04:58.2]} 3. c4 {[%clk 0:04:53]} 3... Bg7 {[%clk 0:04:57.3]} 4.
Nc3 {[%clk 0:04:51.6]} 4... O-O {[%clk 0:04:56.5]} 5. e4 {[%clk 0:04:50.3]} 5...
d6 {[%clk 0:04:55.5]} 6. Be2 {[%clk 0:04:48.7]} 6... e5 {[%clk 0:04:54.6]} 7. d5
{[%clk 0:04:47.3]} 7... a5 {[%clk 0:04:53.6]} 8. h3 {[%clk 0:04:44.7]} 8... Na6
{[%clk 0:04:52.3]} 9. Rb1 {[%clk 0:04:35.6]} 9... c6 {[%clk 0:04:51.4]} 10. dxc6
{[%clk 0:04:33.5]} 10... bxc6 {[%clk 0:04:50.6]} 11. Be3 {[%clk 0:04:29.7]}
11... Rb8 {[%clk 0:04:47]} 12. Qd2 {[%clk 0:04:28.2]} 12... Qe7 {[%clk
0:04:41.2]} 13. O-O {[%clk 0:04:18.4]} 13... Nc5 {[%clk 0:04:39.5]} 14. Bd3
{[%clk 0:04:06.4]} 14... Nh5 {[%clk 0:04:35.9]} 15. Ne2 {[%clk 0:03:50]} 15...
f5 {[%clk 0:04:31.3]} 16. exf5 {[%clk 0:03:43.3]} 16... Nxd3 {[%clk 0:04:29.3]}
17. fxg6 {[%clk 0:03:22.3]} 17... hxg6 {[%clk 0:04:27.5]} 18. Bg5 {[%clk
0:03:18.4]} 18... Nf6 {[%clk 0:04:26.1]} 19. Ng3 {[%clk 0:03:07]} 19... e4
{[%clk 0:04:21.1]} 20. Nh4 {[%clk 0:02:52.5]} 20... d5 {[%clk 0:04:17.9]} 21.
Nxg6 {[%clk 0:02:45.3]} 21... Qf7 {[%clk 0:04:16.9]} 22. Nxf8 {[%clk 0:02:42.2]}
22... Qxf8 {[%clk 0:04:15.3]} 23. cxd5 {[%clk 0:02:38.1]} 23... cxd5 {[%clk
0:04:14.1]} 24. Qxa5 {[%clk 0:02:34.8]} 24... Be6 {[%clk 0:04:11.3]} 25. Ne2
{[%clk 0:02:15.5]} 25... Nd7 {[%clk 0:04:01.2]} 26. Be3 {[%clk 0:02:05.7]} 26...
Be5 {[%clk 0:03:56.6]} 27. Nd4 {[%clk 0:01:55.8]} 27... Bf7 {[%clk 0:03:47.5]}
28. Nc6 {[%clk 0:01:51]} 28... Ra8 {[%clk 0:03:41.9]} 29. Qd2 {[%clk 0:01:43.5]}
29... Qg7 {[%clk 0:03:37.2]} 30. Bh6 {[%clk 0:01:32.5]} 30... Qf6 {[%clk
0:03:28.2]} 31. b4 {[%clk 0:01:27.4]} 31... Kh7 {[%clk 0:03:19.4]} 32. Nxe5
{[%clk 0:01:24.4]} 32... N7xe5 {[%clk 0:03:17.9]} 33. Bg5 {[%clk 0:01:19.5]}
33... Qg6 {[%clk 0:03:14.7]} 34. f4 {[%clk 0:01:10.8]} 34... exf3 {[%clk
0:03:10.8]} 35. gxf3 {[%clk 0:01:08.9]} 35... d4 {[%clk 0:02:58.4]} 36. f4
{[%clk 0:01:05.7]} 36... Rxa2 {[%clk 0:02:55]} 37. Qd1 {[%clk 0:00:52.8]} 37...
Qe4 {[%clk 0:02:52]} 0-1

[Event "Live Chess"]
[Site "Chess.com"]
[Date "2023.05.21"]
[Round "-"]
[White "martynstanley"]
[Black "CeladonFish"]
[Result "0-1"]
[WhiteElo "999"]
[BlackElo "1105"]
[TimeControl "300"]
[EndTime "23:29:14 PDT"]
[Termination "CeladonFish won by resignation"]

1. d4 {[%clk 0:04:59.5]} 1... Nf6 {[%clk 0:04:56.4]} 2. e3 {[%clk 0:04:55.8]}
2... g6 {[%clk 0:04:54.8]} 3. Bd3 {[%clk 0:04:54.8]} 3... Bg7 {[%clk 0:04:52]}
4. f4 {[%clk 0:04:53.4]} 4... O-O {[%clk 0:04:44.1]} 5. Nf3 {[%clk 0:04:51.8]}
5... d5 {[%clk 0:04:42.8]} 6. O-O {[%clk 0:04:50.5]} 6... Bd7 {[%clk 0:04:35.4]}
7. c3 {[%clk 0:04:49.6]} 7... a6 {[%clk 0:04:33.2]} 8. Ne5 {[%clk 0:04:47.8]}
8... b5 {[%clk 0:04:30.7]} 9. Rf3 {[%clk 0:04:46.5]} 9... Bg4 {[%clk 0:04:28.5]}
10. h3 {[%clk 0:04:44.1]} 10... Bxf3 {[%clk 0:04:27.1]} 11. Qxf3 {[%clk
0:04:43.3]} 11... Nbd7 {[%clk 0:04:22.7]} 12. Nd2 {[%clk 0:04:42]} 12... Rc8
{[%clk 0:04:20.1]} 13. Qe4 {[%clk 0:04:41]} 13... Nxe4 {[%clk 0:04:18.6]} 14.
Nxe4 {[%clk 0:04:39.9]} 14... Nxe5 {[%clk 0:04:17.1]} 15. Ng5 {[%clk 0:04:37.8]}
15... Nxd3 {[%clk 0:04:15.5]} 16. Bd2 {[%clk 0:04:36.3]} 16... e5 {[%clk
0:04:12.1]} 17. fxe5 {[%clk 0:04:34.8]} 17... Qxg5 {[%clk 0:04:10.3]} 18. Kh2
{[%clk 0:04:24.7]} 18... f6 {[%clk 0:04:05.4]} 19. e4 {[%clk 0:04:23.5]} 19...
fxe5 {[%clk 0:04:03.3]} 20. Bxg5 {[%clk 0:04:22]} 20... exd4 {[%clk 0:03:59.9]}
21. cxd4 {[%clk 0:04:20.8]} 21... dxe4 {[%clk 0:03:56.5]} 22. Rd1 {[%clk
0:04:18.6]} 22... Rce8 {[%clk 0:03:53.5]} 23. b3 {[%clk 0:04:15]} 23... Nb4
{[%clk 0:03:51.6]} 24. a3 {[%clk 0:04:13.4]} 24... Na2 {[%clk 0:03:49.9]} 25. d5
{[%clk 0:04:12]} 25... Rf7 {[%clk 0:03:46.3]} 26. Bh4 {[%clk 0:04:05.9]} 26...
e3 {[%clk 0:03:44.2]} 27. Bg3 {[%clk 0:04:04.2]} 27... e2 {[%clk 0:03:43]} 28.
Re1 {[%clk 0:04:02.7]} 28... Bc3 {[%clk 0:03:38.3]} 29. Rxe2 {[%clk 0:04:00.8]}
29... Rxe2 {[%clk 0:03:36.9]} 30. Bxc7 {[%clk 0:04:00.7]} 30... Rxc7 {[%clk
0:03:32.8]} 31. d6 {[%clk 0:03:59.6]} 31... Rd7 {[%clk 0:03:32.3]} 32. a4 {[%clk
0:03:57.5]} 32... Rxd6 {[%clk 0:03:30.1]} 33. axb5 {[%clk 0:03:56.2]} 33... axb5
{[%clk 0:03:30]} 34. b4 {[%clk 0:03:54.4]} 34... Nxb4 {[%clk 0:03:28.4]} 0-1

[Event "Live Chess"]
[Site "Chess.com"]
[Date "2023.05.21"]
[Round "-"]
[White "Davidagye"]
[Black "chessfiction"]
[Result "0-1"]
[WhiteElo "1672"]
[BlackElo "2346"]
[TimeControl "300"]
[EndTime "23:29:14 PDT"]
[Termination "chessfiction won by resignation"]

1. b4 {[%clk 0:04:57.7]} 1... e5 {[%clk 0:04:58.7]} 2. Bb2 {[%clk 0:04:57.1]}
2... d6 {[%clk 0:04:57.8]} 3. c4 {[%clk 0:04:55.9]} 3... Bg4 {[%clk 0:04:53.6]}
4. h3 {[%clk 0:04:50.4]} 4... Bh5 {[%clk 0:04:52.4]} 5. g4 {[%clk 0:04:48.4]}
5... Bg6 {[%clk 0:04:51]} 6. Bg2 {[%clk 0:04:47.9]} 6... c6 {[%clk 0:04:50.3]}
7. d3 {[%clk 0:04:47.1]} 7... f5 {[%clk 0:04:49.2]} 8. Nf3 {[%clk 0:04:42.7]}
8... fxg4 {[%clk 0:04:47.5]} 9. hxg4 {[%clk 0:04:40.8]} 9... Nf6 {[%clk
0:04:47.4]} 10. g5 {[%clk 0:04:38]} 10... Nh5 {[%clk 0:04:38.4]} 11. c5 {[%clk
0:04:22.4]} 11... Nf4 {[%clk 0:04:35.9]} 12. Nbd2 {[%clk 0:03:40.7]} 12... Nxg2+
{[%clk 0:04:34.4]} 0-1

[Event "Live Chess"]
[Site "Chess.com"]
[Date "2023.05.21"]
[Round "-"]
[White "ossie57"]
[Black "mirandaasilva"]
[Result "1-0"]
[WhiteElo "1931"]
[BlackElo "1631"]
[TimeControl "300"]
[EndTime "23:30:18 PDT"]
[Termination "ossie57 won on time"]

1. d4 {[%clk 0:04:58.5]} 1... d5 {[%clk 0:04:57.7]} 2. Nc3 {[%clk 0:04:54.6]}
2... Bf5 {[%clk 0:04:55]} 3. f3 {[%clk 0:04:48.7]} 3... e6 {[%clk 0:04:54.9]} 4.
g4 {[%clk 0:04:47.9]} 4... Bg6 {[%clk 0:04:53.2]} 5. h4 {[%clk 0:04:47.2]} 5...
h5 {[%clk 0:04:51.7]} 6. g5 {[%clk 0:04:44.9]} 6... Nd7 {[%clk 0:04:44.6]} 7. e4
{[%clk 0:04:36.1]} 7... dxe4 {[%clk 0:04:42]} 8. fxe4 {[%clk 0:04:35.1]} 8... c5
{[%clk 0:04:39]} 9. Nf3 {[%clk 0:04:28.6]} 9... a6 {[%clk 0:04:38.1]} 10. Bd3
{[%clk 0:04:21.9]} 10... Rc8 {[%clk 0:04:32.9]} 11. e5 {[%clk 0:04:16]} 11...
cxd4 {[%clk 0:04:30.2]} 12. Nxd4 {[%clk 0:04:07.7]} 12... Nxe5 {[%clk 0:04:25]}
13. Bxg6 {[%clk 0:04:05.9]} 13... Nxg6 {[%clk 0:04:19.2]} 14. a3 {[%clk
0:04:00.5]} 14... Bc5 {[%clk 0:04:00.3]} 15. Be3 {[%clk 0:03:46.7]} 15... N8e7
{[%clk 0:03:24.8]} 16. Nce2 {[%clk 0:03:35.4]} 16... Qd5 {[%clk 0:03:08.7]} 17.
Rf1 {[%clk 0:03:28.7]} 17... Nxh4 {[%clk 0:03:03.4]} 18. Qd3 {[%clk 0:03:19.7]}
18... Ng2+ {[%clk 0:02:13.1]} 19. Kd2 {[%clk 0:03:10.5]} 19... Nxe3 {[%clk
0:02:13]} 20. Qxe3 {[%clk 0:03:01.1]} 20... O-O {[%clk 0:01:28.9]} 21. b4 {[%clk
0:02:26.5]} 21... Nf5 {[%clk 0:01:11.9]} 22. Rxf5 {[%clk 0:02:08.1]} 22... exf5
{[%clk 0:01:10.4]} 23. bxc5 {[%clk 0:02:04.6]} 23... Rfe8 {[%clk 0:00:51.9]} 24.
Qd3 {[%clk 0:01:42]} 24... Re4 {[%clk 0:00:47.8]} 25. c3 {[%clk 0:01:39.3]}
25... Rxc5 {[%clk 0:00:43.5]} 26. g6 {[%clk 0:01:22.8]} 26... fxg6 {[%clk
0:00:33.3]} 27. Rb1 {[%clk 0:01:21.5]} 27... Qa2+ {[%clk 0:00:22.9]} 28. Ke1
{[%clk 0:01:15]} 28... b5 {[%clk 0:00:18.9]} 29. Rc1 {[%clk 0:01:10.3]} 29...
Qxa3 {[%clk 0:00:16.8]} 30. Rc2 {[%clk 0:01:09.2]} 30... Qa1+ {[%clk 0:00:15.4]}
31. Kd2 {[%clk 0:01:04.3]} 31... b4 {[%clk 0:00:09.1]} 32. Nb3 {[%clk
0:00:54.7]} 32... Rxc3 {[%clk 0:00:07.6]} 33. Rxc3 {[%clk 0:00:52.8]} 33...
bxc3+ {[%clk 0:00:07.5]} 34. Qxc3 {[%clk 0:00:50.5]} 34... Qxc3+ {[%clk
0:00:06.2]} 35. Nxc3 {[%clk 0:00:49.4]} 35... Rh4 {[%clk 0:00:06.1]} 36. Kc2
{[%clk 0:00:48.4]} 36... Rh3 {[%clk 0:00:06]} 37. Nd5 {[%clk 0:00:47]} 37...
Rh2+ {[%clk 0:00:05.9]} 38. Kd1 {[%clk 0:00:45.6]} 38... h4 {[%clk 0:00:04.9]}
39. Ke1 {[%clk 0:00:44.9]} 39... h3 {[%clk 0:00:04.8]} 40. Nf4 {[%clk
0:00:44.1]} 40... Rg2 {[%clk 0:00:04.7]} 41. Kf1 {[%clk 0:00:42.1]} 41... Rb2
{[%clk 0:00:04.6]} 42. Nd4 {[%clk 0:00:40.7]} 42... g5 {[%clk 0:00:04.1]} 43.
Nxh3 {[%clk 0:00:39.3]} 43... g4 {[%clk 0:00:04]} 44. Nf4 {[%clk 0:00:38.4]}
44... Rb3 {[%clk 0:00:03.7]} 45. Nde6 {[%clk 0:00:37.4]} 45... Rf3+ {[%clk
0:00:03.6]} 46. Ke2 {[%clk 0:00:35.7]} 46... g5 {[%clk 0:00:02.9]} 47. Nh5
{[%clk 0:00:34.5]} 47... g3 {[%clk 0:00:02.7]} 48. Nd4 {[%clk 0:00:33]} 48...
Kf7 {[%clk 0:00:02.5]} 49. Nxf3 {[%clk 0:00:31.5]} 49... g4 {[%clk 0:00:02.4]}
50. Ng1 {[%clk 0:00:30.6]} 50... a5 {[%clk 0:00:02.3]} 51. Nxg3 {[%clk
0:00:29.6]} 51... f4 {[%clk 0:00:02.2]} 52. Nf1 {[%clk 0:00:28.5]} 52... f3+
{[%clk 0:00:02.1]} 53. Kf2 {[%clk 0:00:27.7]} 53... a4 {[%clk 0:00:02]} 54. Nd2
{[%clk 0:00:26.6]} 54... a3 {[%clk 0:00:01.9]} 55. Nb3 {[%clk 0:00:26.1]} 55...
a2 {[%clk 0:00:01.8]} 56. Kg3 {[%clk 0:00:25.2]} 56... f2 {[%clk 0:00:00.2]} 57.
Ne2 {[%clk 0:00:21.5]} 1-0

[Event "Live Chess"]
[Site "Chess.com"]
[Date "2023.05.21"]
[Round "-"]
[White "AttackingSnowLeopard"]
[Black "KeithArkell"]
[Result "1/2-1/2"]
[WhiteElo "2147"]
[BlackElo "2555"]
[TimeControl "300"]
[EndTime "23:30:23 PDT"]
[Termination "Game drawn - insufficient material"]

1. d4 {[%clk 0:04:57.6]} 1... e6 {[%clk 0:04:58.8]} 2. c4 {[%clk 0:04:55.5]}
2... Bb4+ {[%clk 0:04:57.8]} 3. Bd2 {[%clk 0:04:54.9]} 3... Bxd2+ {[%clk
0:04:56.9]} 4. Qxd2 {[%clk 0:04:54.5]} 4... Nf6 {[%clk 0:04:56.6]} 5. Nc3 {[%clk
0:04:53.2]} 5... d6 {[%clk 0:04:56.5]} 6. e4 {[%clk 0:04:45.3]} 6... Qe7 {[%clk
0:04:56.4]} 7. Nf3 {[%clk 0:04:43.4]} 7... e5 {[%clk 0:04:56.3]} 8. d5 {[%clk
0:04:40]} 8... Bg4 {[%clk 0:04:56.2]} 9. Qe3 {[%clk 0:04:35.1]} 9... Bxf3 {[%clk
0:04:56.1]} 10. Qxf3 {[%clk 0:04:34.1]} 10... Nbd7 {[%clk 0:04:48.1]} 11. Be2
{[%clk 0:04:33.1]} 11... a5 {[%clk 0:04:45.1]} 12. O-O {[%clk 0:04:31.5]} 12...
Nc5 {[%clk 0:04:44.3]} 13. Qe3 {[%clk 0:04:24.8]} 13... O-O {[%clk 0:04:42.1]}
14. b3 {[%clk 0:04:22.4]} 14... c6 {[%clk 0:04:37.2]} 15. Rab1 {[%clk
0:04:14.8]} 15... Qc7 {[%clk 0:04:30]} 16. a3 {[%clk 0:04:04.6]} 16... h6 {[%clk
0:04:27.1]} 17. Bd1 {[%clk 0:03:40.3]} 17... Rfc8 {[%clk 0:04:16]} 18. b4 {[%clk
0:03:39]} 18... axb4 {[%clk 0:04:14.9]} 19. axb4 {[%clk 0:03:38.2]} 19... Ncd7
{[%clk 0:04:13.4]} 20. Be2 {[%clk 0:03:23.3]} 20... Ra3 {[%clk 0:04:06.7]} 21.
Ra1 {[%clk 0:03:21.5]} 21... Rca8 {[%clk 0:04:03.5]} 22. Rxa3 {[%clk 0:03:11.9]}
22... Rxa3 {[%clk 0:04:03.4]} 23. Qd2 {[%clk 0:03:08.2]} 23... Qb6 {[%clk
0:03:56.1]} 24. Qb2 {[%clk 0:03:01]} 24... Qa7 {[%clk 0:03:50.1]} 25. dxc6
{[%clk 0:02:39.6]} 25... bxc6 {[%clk 0:03:47.9]} 26. b5 {[%clk 0:02:39.3]} 26...
cxb5 {[%clk 0:01:57.6]} 27. cxb5 {[%clk 0:02:17.1]} 27... Qa5 {[%clk 0:01:42.7]}
28. Rc1 {[%clk 0:02:04]} 28... Nb6 {[%clk 0:01:41.6]} 29. h3 {[%clk 0:01:47.4]}
29... Nfd7 {[%clk 0:01:29.8]} 30. Qd2 {[%clk 0:01:00.5]} 30... Nc5 {[%clk
0:01:21.3]} 31. Qxd6 {[%clk 0:00:55]} 31... Rxc3 {[%clk 0:01:16.4]} 32. Rxc3
{[%clk 0:00:52.7]} 32... Qxc3 {[%clk 0:01:15.6]} 33. Qxb6 {[%clk 0:00:52.3]}
33... Nxe4 {[%clk 0:01:07.4]} 34. Qd8+ {[%clk 0:00:44.8]} 34... Kh7 {[%clk
0:01:05.8]} 35. Qd3 {[%clk 0:00:43]} 35... Qe1+ {[%clk 0:01:03.7]} 36. Kh2
{[%clk 0:00:41.8]} 36... f5 {[%clk 0:01:02.5]} 37. Bf3 {[%clk 0:00:34.4]} 37...
Qh1+ {[%clk 0:00:18.2]} 38. Kxh1 {[%clk 0:00:29.3]} 38... Nxf2+ {[%clk
0:00:18.1]} 39. Kg1 {[%clk 0:00:26.8]} 39... Nxd3 {[%clk 0:00:17.9]} 40. b6
{[%clk 0:00:26.3]} 40... Nc5 {[%clk 0:00:17]} 41. b7 {[%clk 0:00:25.8]} 41...
Nd7 {[%clk 0:00:15.3]} 42. Bd5 {[%clk 0:00:20]} 42... Nb8 {[%clk 0:00:13.1]} 43.
Kf2 {[%clk 0:00:19.7]} 43... Kg6 {[%clk 0:00:12.5]} 44. Ke3 {[%clk 0:00:18.9]}
44... Kf6 {[%clk 0:00:12.1]} 45. g4 {[%clk 0:00:18.1]} 45... g6 {[%clk
0:00:11.1]} 46. gxf5 {[%clk 0:00:16.8]} 46... gxf5 {[%clk 0:00:10.7]} 47. Kf3
{[%clk 0:00:16.1]} 47... Ke7 {[%clk 0:00:09.8]} 48. Ke3 {[%clk 0:00:15.6]} 48...
Kd6 {[%clk 0:00:09.2]} 49. Bg2 {[%clk 0:00:15.1]} 49... e4 {[%clk 0:00:07.3]}
50. Bxe4 {[%clk 0:00:14.3]} 50... fxe4 {[%clk 0:00:06.4]} 51. Kxe4 {[%clk
0:00:14.2]} 51... Kc6 {[%clk 0:00:05.7]} 52. Kf5 {[%clk 0:00:13.6]} 52... Kxb7
{[%clk 0:00:05.2]} 53. Kg6 {[%clk 0:00:13.3]} 53... Nd7 {[%clk 0:00:04.9]} 54.
Kxh6 {[%clk 0:00:13.2]} 54... Ne5 {[%clk 0:00:04.1]} 55. Kg7 {[%clk 0:00:13.1]}
55... Nf3 {[%clk 0:00:03.2]} 56. h4 {[%clk 0:00:13]} 56... Nxh4 {[%clk
0:00:02.3]} 1/2-1/2

[Event "Live Chess"]
[Site "Chess.com"]
[Date "2023.05.21"]
[Round "-"]
[White "Doge_Dandolo"]
[Black "LaupMiths"]
[Result "1-0"]
[WhiteElo "1908"]
[BlackElo "1810"]
[TimeControl "300"]
[EndTime "23:30:37 PDT"]
[Termination "Doge_Dandolo won by resignation"]

1. Nf3 {[%clk 0:04:57.6]} 1... d5 {[%clk 0:04:55.8]} 2. c4 {[%clk 0:04:56.3]}
2... e6 {[%clk 0:04:53.4]} 3. g3 {[%clk 0:04:54.9]} 3... c5 {[%clk 0:04:52]} 4.
Bg2 {[%clk 0:04:50.8]} 4... Nc6 {[%clk 0:04:51.5]} 5. cxd5 {[%clk 0:04:49.5]}
5... exd5 {[%clk 0:04:51.4]} 6. d4 {[%clk 0:04:48.3]} 6... Nf6 {[%clk
0:04:49.3]} 7. O-O {[%clk 0:04:46.8]} 7... cxd4 {[%clk 0:04:48]} 8. Nxd4 {[%clk
0:04:45.2]} 8... Bc5 {[%clk 0:04:47.5]} 9. Nxc6 {[%clk 0:04:42.1]} 9... bxc6
{[%clk 0:04:46.9]} 10. Qc2 {[%clk 0:04:40.9]} 10... Qd6 {[%clk 0:04:41.8]} 11.
Bf4 {[%clk 0:04:38.4]} 11... Qe7 {[%clk 0:04:39.2]} 12. Nc3 {[%clk 0:04:32]}
12... O-O {[%clk 0:04:37.3]} 13. Na4 {[%clk 0:04:28.3]} 13... Bb6 {[%clk
0:04:25.5]} 14. a3 {[%clk 0:04:22.9]} 14... Bd7 {[%clk 0:04:19.5]} 15. b4 {[%clk
0:04:21.1]} 15... Rfe8 {[%clk 0:04:13.1]} 16. Rfe1 {[%clk 0:04:16.7]} 16... Rac8
{[%clk 0:04:11.2]} 17. Rac1 {[%clk 0:04:10.3]} 17... Nh5 {[%clk 0:04:08.4]} 18.
Bd2 {[%clk 0:03:57.5]} 18... Bg4 {[%clk 0:03:42.2]} 19. e3 {[%clk 0:03:44.5]}
19... Qf6 {[%clk 0:03:36.8]} 20. Bc3 {[%clk 0:03:41]} 20... Qe6 {[%clk
0:03:23.9]} 21. Bb2 {[%clk 0:03:37.3]} 21... Bh3 {[%clk 0:03:21]} 22. Nc5 {[%clk
0:03:34]} 22... Bxc5 {[%clk 0:03:16.6]} 23. Qxc5 {[%clk 0:03:31]} 23... Bxg2
{[%clk 0:03:14.4]} 24. Kxg2 {[%clk 0:03:30]} 24... Qe4+ {[%clk 0:03:08.7]} 25.
Kg1 {[%clk 0:03:28.4]} 25... Nf6 {[%clk 0:02:56.5]} 26. Qd4 {[%clk 0:03:24.2]}
26... Qf3 {[%clk 0:02:47.7]} 27. Qf4 {[%clk 0:03:14.3]} 27... Qxf4 {[%clk
0:02:36.5]} 28. gxf4 {[%clk 0:03:13.1]} 28... Ne4 {[%clk 0:02:31.9]} 29. Bd4
{[%clk 0:03:08]} 29... a6 {[%clk 0:02:25.4]} 30. Kg2 {[%clk 0:03:00.9]} 30...
Nd6 {[%clk 0:02:23]} 31. Kf3 {[%clk 0:02:57]} 31... Nc4 {[%clk 0:02:21.8]} 32.
Rg1 {[%clk 0:02:54.4]} 32... g6 {[%clk 0:02:18.2]} 33. a4 {[%clk 0:02:44.5]}
33... f5 {[%clk 0:02:16.7]} 34. a5 {[%clk 0:02:37.3]} 34... Rb8 {[%clk
0:02:12.1]} 35. Bc5 {[%clk 0:02:35.9]} 35... Rb7 {[%clk 0:02:08.5]} 36. Rgd1
{[%clk 0:02:34.1]} 36... Rd7 {[%clk 0:02:04]} 37. Rxc4 {[%clk 0:02:30.3]} 37...
Re4 {[%clk 0:01:56.7]} 38. Rxe4 {[%clk 0:02:27.8]} 38... dxe4+ {[%clk
0:01:55.9]} 39. Ke2 {[%clk 0:02:26.1]} 1-0